bitfinex-derivatives/quotes_SOLF0:USTF0_20250425
["timestamp","ask_amount","ask_price","bid_price","bid_amount"]
[1745551288382,5.3027068,151.02,150.98,2.0509]
[1745551288683,30.9227068,151.04,150.98,2.0509]
[1745551289382,6.6193,151.03,150.99,11.9231068]
[1745551289583,30.9227068,151.04,150.99,5.3027068]
[1745551290083,37.5416068,151.04,151.0,6.6201]
[1745551291085,30.9227068,151.04,151.0,6.6201]
[1745551292282,37.5413068,151.04,151.0,6.6201]
[1745551292583,5.3027068,151.01,150.92,25.62]
[1745551292882,11.9238068,150.99,150.92,25.62]
[1745551293088,11.9238068,150.99,150.94,11.9253068]
[1745551293286,11.9238068,150.99,150.94,6.6226]
[1745551293486,11.9238068,150.99,150.94,11.9253068]
[1745551293786,5.3027068,150.99,150.95,6.6223]
[1745551294180,5.3027068,150.99,150.94,5.3027068]
[1745551294376,1.9692,151.03,150.94,5.3027068]
[1745551294578,25.62,151.08,150.98,5.3027068]
[1745551294779,1.9692,151.08,151.02,5.3027068]
[1745551294987,92.45486203,151.18,151.06,5.3027068]
[1745551295185,92.45486203,151.18,151.07,31.5719]
[1745551295387,25.62,151.17,151.07,3.9908]
[1745551295687,5.3027068,151.13,151.07,3.9908]
[1745551295887,6.6152,151.12,151.07,3.9908]
[1745551296088,25.62,151.13,151.08,5.3027068]
[1745551296390,5.3027068,151.11,151.07,6.6173]
[1745551296589,5.3027068,151.09,151.03,5.3027068]
[1745551296785,5.3027068,151.09,151.05,6.6177]
[1745551296984,5.3027068,151.09,151.03,5.3027068]
[1745551297185,5.3027068,151.09,151.01,29.6108]
[1745551297186,5.3027068,151.07,151.01,3.9908]
[1745551297386,33.90779474,151.09,151.02,6.6195]
[1745551297587,25.62,151.09,151.01,12.27859474]
[1745551298189,8.28779474,151.07,151.01,3.9908]
[1745551298390,6.6182,151.05,150.99,6.6207]
[1745551298591,25.62,151.04,150.97,8.28779474]
[1745551299095,25.62,151.04,150.99,6.6207]
[1745551299299,25.62,151.04,150.97,8.28779474]
[1745551299487,25.62,151.04,151.0,6.6203]
[1745551299687,25.62,151.08,150.97,8.28779474]
[1745551299889,25.62,151.11,151.02,8.28779474]
[1745551300089,6.6161,151.1,151.04,14.90629474]
[1745551300289,6.6161,151.1,151.03,3.7823]
[1745551300290,8.28779474,151.1,151.03,3.7823]
[1745551300490,8.28779474,151.1,151.03,1.9066]
[1745551300691,6.6169,151.08,151.03,1.9066]
[1745551300892,25.62,151.07,151.03,1.9066]
[1745551301093,25.62,151.09,151.03,8.5253]
[1745551301400,25.62,151.09,151.04,8.28779474]
[1745551301793,6.6159,151.11,151.05,8.4938]
[1745551301994,25.62,151.21,151.1,8.28779474]
[1745551302294,1.871,151.23,151.14,8.28779474]
[1745551302495,1.871,151.23,151.16,8.28779474]
[1745551302792,6.6115,151.21,151.16,8.28779474]
[1745551302993,118.07486203,151.24,151.16,8.28779474]
[1745551304392,92.45486203,151.24,151.16,8.28779474]
[1745551304593,92.45486203,151.24,151.13,1.8774]
[1745551304594,1.871,151.31,151.2,8.28779474]
[1745551304794,1.871,151.31,151.22,8.28779474]
[1745551305299,1.871,151.31,151.21,17.05480854]
[1745551305499,6.6073,151.3,151.24,6.6097]
[1745551305695,13.21780854,151.35,151.21,17.05480854]
[1745551306798,13.21780854,151.32,151.21,3.837]
[1745551307398,13.21780854,151.35,151.21,17.05480854]
[1745551307600,13.21780854,151.35,151.22,62.0]
[1745551308100,13.21780854,151.35,151.23,25.58]
[1745551308800,6.6078,151.29,151.24,6.6097]
[1745551309001,13.21780854,151.35,151.23,25.58]
[1745551309401,6.6072,151.3,151.24,6.6098]
[1745551309603,13.21780854,151.35,151.24,13.21780854]
[1745551309901,6.6087,151.27,151.23,25.58]
[1745551310201,13.21780854,151.35,151.23,25.58]
[1745551310597,13.21780854,151.35,151.21,3.837]
[1745551310903,13.21780854,151.35,151.21,17.05480854]
[1745551311402,13.21780854,151.35,151.21,3.837]
[1745551311602,6.6101,151.24,151.21,3.837]
[1745551311799,25.56,151.28,151.21,3.837]
[1745551313905,6.6103,151.24,151.21,3.837]
[1745551314205,25.56,151.28,151.21,3.837]
[1745551314405,25.56,151.28,151.17,1.9091]
[1745551314604,2.0473,151.27,151.17,1.9091]
[1745551314905,2.0473,151.27,151.16,25.56]
[1745551315806,2.0473,151.27,151.16,32.1733]
[1745551316305,2.0473,151.27,151.16,25.56]
[1745551316904,25.56,151.28,151.18,13.21780854]
[1745551317104,25.56,151.28,151.19,1.8506]
[1745551317305,25.56,151.28,151.2,25.56]
[1745551317602,25.56,151.28,151.21,13.21780854]
[1745551318002,25.56,151.31,151.22,3.8134]
[1745551318202,477.67066047,151.38,151.24,13.21780854]
[1745551318407,25.56,151.37,151.27,13.21780854]
[1745551318709,6.6067,151.32,151.27,13.21780854]
[1745551319209,6.6063,151.33,151.28,6.608]
[1745551319808,6.6064,151.32,151.28,6.608]
[1745551320610,6.606,151.33,151.28,6.608]
[1745551321409,6.6065,151.32,151.28,6.608]
[1745551322108,25.56,151.37,151.29,6.6076]
[1745551322409,25.56,151.37,151.27,13.21780854]
[1745551322607,25.56,151.37,151.26,2.0147]
[1745551322910,6.6067,151.32,151.26,2.0147]
[1745551323210,6.6067,151.32,151.27,6.6084]
[1745551323411,25.56,151.33,151.22,3.8134]
[1745551323612,25.56,151.32,151.24,6.6095]
[1745551323802,25.56,151.32,151.22,29.3734]
[1745551324006,6.6072,151.31,151.22,29.3734]
[1745551324307,25.56,151.32,151.22,29.3734]
[1745551324507,32.1665,151.32,151.22,29.3734]
[1745551324811,32.1665,151.32,151.27,6.6081]
[1745551325113,25.56,151.35,151.26,25.56]
[1745551325410,25.56,151.35,151.28,6.6081]
[1745551325605,6.6062,151.33,151.28,6.6081]
[1745551325810,25.56,151.35,151.25,25.56]
[1745551326012,6.6067,151.32,151.25,25.56]
[1745551326509,25.56,151.35,151.27,13.21780854]
[1745551327018,502.08,151.38,151.27,13.21780854]
[1745551327210,502.08,151.38,151.3,13.21780854]
[1745551327512,6.6054,151.35,151.31,3.9406]
[1745551328014,6.6047,151.36,151.31,10.547]
[1745551328307,25.56,151.38,151.31,3.9406]
[1745551328515,6.6056,151.34,151.31,3.9406]
[1745551329011,25.56,151.38,151.31,3.9406]
[1745551329610,25.56,151.38,151.3,25.56]
[1745551330315,6.6058,151.34,151.3,25.56]
[1745551330518,25.56,151.38,151.3,25.56]
[1745551330815,25.56,151.38,151.28,8.5243]
[1745551331413,6.6062,151.33,151.28,8.5243]
[1745551332214,25.56,151.38,151.28,1.9163]
[1745551332416,38.77780854,151.38,151.27,25.56]
[1745551332615,38.77780854,151.38,151.24,42.68170854]
[1745551332821,13.21780854,151.35,151.24,36.0736]
[1745551333015,27.5481,151.34,151.24,3.9239]
[1745551333208,13.21780854,151.32,151.21,25.54]
[1745551333816,6.6103,151.23,151.21,25.54]
[1745551334117,25.54,151.27,151.18,25.54]
[1745551334414,25.54,151.27,151.2,6.6112]
[1745551334617,25.54,151.27,151.18,25.54]
[1745551335310,25.54,151.27,151.16,5.7994]
[1745551335510,1.8454,151.26,151.16,5.7994]
[1745551335717,1.8454,151.26,151.17,6.6128]
[1745551336118,1.8454,151.26,151.16,5.7994]
[1745551336320,6.6114,151.21,151.16,12.4124]
[1745551336618,6.6114,151.21,151.16,5.7994]
[1745551336822,1.8454,151.26,151.16,5.7994]
[1745551337122,1.8454,151.26,151.18,6.6124]
[1745551337324,1.8454,151.26,151.16,5.7994]
[1745551337525,6.6108,151.22,151.17,6.6126]
[1745551338622,1.8454,151.26,151.18,6.6124]
[1745551338826,25.54,151.27,151.17,13.21780854]
[1745551340726,6.6116,151.2,151.16,12.4127]
[1745551341024,25.56,151.23,151.16,5.7994]
[1745551341226,6.611,151.22,151.17,6.6126]
[1745551341427,25.56,151.23,151.17,6.6126]
[1745551341623,25.56,151.23,151.16,3.7814]
[1745551343022,6.6128,151.18,151.16,3.7814]
[1745551343926,6.6121,151.19,151.16,3.7814]
[1745551344129,25.56,151.23,151.16,3.7814]
[1745551344730,1.9207,151.25,151.16,3.7814]
[1745551345028,25.56,151.24,151.16,3.7814]
[1745551347230,6.6112,151.21,151.17,6.6129]
[1745551347528,25.56,151.24,151.16,3.7814]
[1745551347824,6.6111,151.22,151.18,6.6124]
[1745551348028,25.56,151.24,151.16,3.7814]
[1745551348525,25.56,151.24,151.16,10.3945]
[1745551349332,6.6114,151.21,151.17,6.6129]
[1745551349629,25.56,151.24,151.16,3.7814]
[1745551350330,25.56,151.24,151.16,10.3946]
[1745551350732,25.56,151.24,151.16,3.7814]
[1745551351627,6.6115,151.21,151.17,6.6129]
[1745551353534,25.56,151.27,151.17,38.77780854]
[1745551353830,13.21780854,151.32,151.17,38.77780854]
[1745551353831,25.56,151.29,151.2,13.21780854]
[1745551354034,25.56,151.29,151.23,6.6099]
[1745551354226,25.56,151.29,151.23,13.21780854]
[1745551354426,25.56,151.29,151.24,3.9218]
[1745551354634,27.5481,151.32,151.24,3.9218]
[1745551355535,6.608,151.29,151.24,10.5314]
[1745551356029,6.6086,151.27,151.23,19.82810854]
[1745551356232,6.6086,151.27,151.23,6.6103]
[1745551357137,6.6091,151.26,151.21,32.1707]
[1745551357335,27.5481,151.32,151.21,32.1707]
[1745551357632,25.56,151.31,151.21,25.56]
[1745551357934,6.6086,151.27,151.23,6.6101]
[1745551358435,6.6086,151.27,151.22,6.6106]
[1745551358632,25.56,151.31,151.22,6.6106]
[1745551359037,6.6087,151.27,151.22,6.6106]
[1745551359436,25.56,151.31,151.22,6.6106]
[1745551360338,6.6089,151.27,151.22,6.6106]
[1745551360636,6.6089,151.27,151.23,6.6102]
[1745551361442,6.608,151.29,151.24,6.6097]
[1745551361638,25.56,151.31,151.21,25.56]
[1745551362140,6.6085,151.28,151.23,6.6099]
[1745551362437,6.6085,151.28,151.21,25.56]
[1745551362637,6.6085,151.28,151.23,6.61]
[1745551364042,6.6085,151.28,151.24,6.6098]
[1745551364243,6.6078,151.29,151.24,6.6098]
[1745551364440,6.6078,151.29,151.21,25.56]
[1745551364640,6.6078,151.29,151.25,6.6091]
[1745551364841,6.6074,151.3,151.25,6.6091]
[1745551365239,32.1669,151.31,151.21,25.56]
[1745551365443,32.1669,151.31,151.23,13.21780854]
[1745551366043,6.6073,151.3,151.23,13.21780854]
[1745551366343,25.56,151.31,151.23,13.21780854]
[1745551366746,6.608,151.29,151.23,13.21780854]
[1745551367145,6.6073,151.3,151.26,6.6088]
[1745551367344,501.64,151.34,151.26,8.258026]
[1745551367744,6.6066,151.32,151.26,8.258026]
[1745551367949,6.6066,151.32,151.26,12.049326]
[1745551368238,508.2456,151.34,151.28,8.258026]
[1745551368444,25.54,151.34,151.28,8.258026]
[1745551368740,32.1457,151.34,151.3,6.6069]
[1745551368947,32.1457,151.34,151.28,8.258026]
[1745551369245,32.1457,151.34,151.29,6.6074]
[1745551369449,32.1457,151.34,151.27,13.20849631]
[1745551369841,25.54,151.34,151.3,6.6072]
[1745551370144,25.54,151.37,151.27,13.20849631]
[1745551370343,25.54,151.37,151.3,6.6069]
[1745551370539,6.6051,151.35,151.3,6.6069]
[1745551371446,6.6051,151.35,151.31,6.6067]
[1745551371744,25.54,151.37,151.3,13.20849631]
[1745551372147,32.1443,151.37,151.3,13.20849631]
[1745551373042,25.54,151.37,151.3,13.20849631]
[1745551373639,32.1445,151.37,151.32,6.6063]
[1745551374445,6.6046,151.36,151.32,6.6063]
[1745551376847,32.1443,151.37,151.32,6.6063]
[1745551377047,32.1443,151.37,151.33,6.6059]
[1745551377549,32.1443,151.37,151.32,6.6062]
[1745551377848,25.54,151.37,151.3,13.20849631]
[1745551378146,25.54,151.37,151.3,19.81559631]
[1745551378554,25.54,151.37,151.29,25.54]
[1745551378748,25.54,151.37,151.26,3.7913]
[1745551378945,2.0135,151.36,151.26,3.7913]
[1745551379548,6.6071,151.31,151.26,3.7913]
[1745551380049,6.6071,151.31,151.27,6.6084]
[1745551382244,32.1465,151.32,151.28,6.608]
[1745551382452,25.54,151.35,151.26,3.7913]
[1745551382646,25.54,151.35,151.27,13.20849631]
[1745551382847,6.606,151.33,151.27,13.20849631]
[1745551383849,6.6056,151.34,151.27,13.20849631]
[1745551384050,25.54,151.35,151.27,13.20849631]
[1745551384051,25.54,151.35,151.27,38.74849631]
[1745551384555,25.54,151.38,151.3,13.20849631]
[1745551385053,32.144,151.38,151.3,13.20849631]
[1745551385352,25.54,151.38,151.3,13.20849631]
[1745551385650,32.1439,151.38,151.3,13.20849631]
[1745551385951,25.54,151.38,151.3,13.20849631]
[1745551386153,6.6045,151.37,151.32,6.6059]
[1745551386654,6.6045,151.37,151.3,13.20849631]
[1745551386843,6.6045,151.37,151.33,6.6055]
[1745551388157,6.6047,151.36,151.32,6.6063]
[1745551388358,25.54,151.38,151.32,6.6063]
[1745551388663,25.54,151.38,151.3,13.20849631]
[1745551388853,6.6048,151.36,151.31,6.6068]
[1745551389054,6.6048,151.36,151.3,13.20849631]
[1745551389259,6.6058,151.34,151.3,6.6069]
[1745551390956,6.6052,151.35,151.3,6.6069]
[1745551392159,6.6047,151.36,151.29,8.2548063]
[1745551392459,25.54,151.38,151.31,8.2548063]
[1745551392962,32.1437,151.38,151.34,6.6055]
[1745551393658,6.6042,151.37,151.33,6.6058]
[1745551393859,6.6042,151.37,151.31,33.7748063]
[1745551394062,25.54,151.38,151.31,33.7748063]
[1745551394760,25.54,151.38,151.31,25.52]
[1745551395060,6.605,151.35,151.31,32.1265]
[1745551395762,6.6047,151.36,151.32,6.6063]
[1745551395962,6.6047,151.36,151.31,25.52]
[1745551396157,25.54,151.38,151.29,10.1058063]
[1745551396464,25.54,151.38,151.31,8.2548063]
[1745551396861,32.1439,151.38,151.33,6.6055]
[1745551397160,25.54,151.38,151.33,6.6055]
[1745551397363,25.54,151.38,151.31,8.2548063]
[1745551397557,25.52,151.41,151.33,8.2548063]
[1745551398061,25.52,151.41,151.34,6.6053]
[1745551398062,6.6038,151.38,151.34,6.6053]
[1745551399260,6.6042,151.37,151.33,14.8606063]
[1745551399562,6.6042,151.37,151.33,6.6058]
[1745551399760,6.6041,151.38,151.34,6.6054]
[1745551400160,25.52,151.41,151.34,6.6054]
[1745551400361,6.6042,151.37,151.33,6.6057]
[1745551402660,6.6039,151.38,151.34,6.6054]
[1745551402860,25.52,151.41,151.32,29.4112]
[1745551403362,25.52,151.41,151.33,6.6056]
[1745551403958,6.6044,151.37,151.33,6.6056]
[1745551404159,6.6044,151.37,151.34,6.6055]
[1745551404462,6.6044,151.37,151.32,3.8912]
[1745551404759,8.2548063,151.4,151.31,8.2548063]
[1745551404954,8.2548063,151.36,151.27,3.8892]
[1745551405154,8.2548063,151.34,151.27,3.8892]
[1745551405363,6.607,151.31,151.27,10.4975]
[1745551406764,25.52,151.31,151.25,6.6091]
[1745551407662,6.6079,151.29,151.25,6.6091]
[1745551407866,25.52,151.31,151.24,6.6095]
[1745551408164,25.52,151.31,151.22,2.0085]
[1745551408369,6.6079,151.29,151.22,3.9319]
[1745551408557,25.52,151.31,151.22,3.9319]
[1745551409064,25.52,151.31,151.24,6.6096]
[1745551409764,6.6079,151.29,151.24,6.6096]
[1745551410065,6.6079,151.29,151.25,6.6093]
[1745551410468,6.6081,151.28,151.22,3.9319]
[1745551411261,1.8958,151.35,151.17,25.52]
[1745551411466,8.2548063,151.28,151.17,37.6004063]
[1745551411766,27.5208,151.27,151.17,37.6004063]
[1745551412158,6.6093,151.26,151.21,6.6109]
[1745551413269,27.5208,151.27,151.2,6.6115]
[1745551413462,27.5208,151.27,151.17,37.6004063]
[1745551413865,6.6096,151.25,151.2,6.6116]
[1745551414663,6.6091,151.26,151.17,37.6004063]
[1745551414864,27.5208,151.27,151.17,37.6004063]
[1745551415264,6.6097,151.25,151.2,6.6113]
[1745551415569,6.6097,151.25,151.17,37.6004063]
[1745551415868,6.6097,151.25,151.21,6.6111]
[1745551416069,6.6097,151.25,151.17,37.6004063]
[1745551416668,6.6101,151.24,151.17,37.6004063]
[1745551417568,6.6095,151.25,151.2,6.6116]
[1745551418668,1.1508888,151.34,151.17,29.3456]
[1745551418871,2.005,151.34,151.26,8.2548063]
[1745551419058,2.005,151.34,151.25,6.6092]
[1745551419260,2.005,151.34,151.25,14.8640063]
[1745551419669,6.6068,151.31,151.25,14.8640063]
[1745551419869,26.64,151.31,151.26,6.6088]
[1745551420870,33.2468,151.31,151.26,6.6088]
[1745551421069,33.2468,151.31,151.25,14.8641063]
[1745551422170,33.2468,151.31,151.25,8.2548063]
[1745551423072,26.64,151.31,151.25,8.2548063]
[1745551423671,6.6072,151.3,151.25,8.2548063]
[1745551423975,26.64,151.31,151.25,8.2548063]
[1745551424577,33.2468,151.31,151.25,8.2548063]
[1745551424774,26.64,151.31,151.25,8.2548063]
[1745551425475,26.64,151.31,151.26,6.6086]
[1745551427378,26.64,151.31,151.27,6.6085]
[1745551427571,8.2548063,151.39,151.29,8.2548063]
[1745551427876,26.64,151.38,151.33,6.6058]
[1745551428079,33.2438,151.38,151.33,6.6058]
[1745551428380,26.64,151.38,151.31,14.8615063]
[1745551428579,26.64,151.38,151.31,8.2548063]
[1745551429881,6.6049,151.36,151.31,8.2548063]
[1745551430178,26.64,151.38,151.31,8.2548063]
[1745551430379,6.6049,151.36,151.31,14.8614063]
[1745551430874,6.6049,151.36,151.31,8.2548063]
[1745551431076,6.6049,151.36,151.32,6.6063]
[1745551432475,6.6051,151.35,151.31,14.8615063]
[1745551433170,6.6047,151.36,151.32,6.6063]
[1745551434279,6.6047,151.36,151.33,6.6059]
[1745551434680,6.6047,151.36,151.31,8.2548063]
[1745551434980,6.6042,151.37,151.31,8.2548063]
[1745551435181,26.64,151.38,151.33,8.2548063]
[1745551436283,26.64,151.38,151.31,8.2548063]
[1745551436682,6.6049,151.36,151.32,6.6062]
[1745551436882,26.64,151.38,151.3,26.62]
[1745551437578,26.64,151.38,151.29,12.2187063]
[1745551438185,6.6054,151.35,151.31,6.6065]
[1745551438478,26.64,151.38,151.29,12.2187063]
[1745551438782,26.64,151.38,151.33,6.6059]
[1745551438783,26.62,151.37,151.33,6.6059]
[1745551439884,33.2242,151.37,151.33,6.6059]
[1745551440183,26.62,151.37,151.34,6.6054]
[1745551442084,6.6041,151.38,151.35,6.605]
[1745551442379,26.62,151.4,151.33,8.2548063]
[1745551442577,26.62,151.4,151.35,8.2548063]
[1745551442987,33.2232,151.4,151.36,6.6045]
[1745551443481,33.2232,151.4,151.35,8.2548063]
[1745551443482,6.6033,151.39,151.35,8.2548063]
[1745551443787,26.62,151.4,151.33,8.2548063]
[1745551444384,6.6036,151.39,151.34,6.6054]
[1745551445585,6.6038,151.38,151.33,14.8606063]
[1745551447293,6.6043,151.37,151.33,14.8606063]
[1745551447788,26.62,151.4,151.33,8.2548063]
[1745551447994,26.62,151.4,151.31,34.8748063]
[1745551448196,8.2548063,151.39,151.29,12.2187063]
[1745551448389,6.606,151.33,151.29,12.2187063]
[1745551448591,26.62,151.36,151.29,12.2187063]
[1745551449095,26.62,151.36,151.31,8.2548063]
[1745551449493,26.7,151.39,151.31,8.2548063]
[1745551449793,6.6043,151.37,151.33,6.6058]
[1745551449993,26.7,151.39,151.33,8.2548063]
[1745551450395,33.3035,151.39,151.34,6.6051]
[1745551450597,33.3035,151.39,151.33,8.2548063]
[1745551450800,26.7,151.39,151.33,8.2548063]
[1745551450995,26.7,151.42,151.35,8.2548063]
[1745551452198,6.6029,151.4,151.36,6.6046]
[1745551453298,26.7,151.42,151.33,10.1727063]
[1745551453792,8.2548063,151.41,151.31,8.2548063]
[1745551453989,10.1142063,151.41,151.31,8.2548063]
[1745551454196,6.605,151.36,151.32,6.6062]
[1745551455295,26.7,151.37,151.31,8.2548063]
[1745551455502,26.7,151.37,151.29,38.9187063]
[1745551455908,34.9548063,151.37,151.29,3.9639]
[1745551457296,34.9548063,151.37,151.3,6.6072]
[1745551457801,26.7,151.37,151.29,12.2187063]
[1745551458005,6.6053,151.35,151.31,6.6064]
[1745551458200,6.6053,151.35,151.29,12.2187063]
[1745551458395,26.7,151.37,151.29,12.2187063]
[1745551460003,6.605,151.35,151.31,6.6065]
[1745551461701,6.6048,151.36,151.32,6.6063]
[1745551462004,6.6048,151.36,151.29,12.2187063]
[1745551462005,26.7,151.37,151.29,12.2187063]
[1745551463004,6.6054,151.35,151.31,6.6067]
[1745551463208,26.7,151.37,151.29,12.2187063]
[1745551463507,6.6057,151.34,151.29,18.8259063]
[1745551463697,6.6057,151.34,151.29,12.2187063]
[1745551465403,26.7,151.37,151.29,12.2187063]
[1745551465404,6.6052,151.35,151.31,6.6067]
[1745551466706,1.8594,151.41,151.33,8.2548063]
[1745551466707,26.7,151.41,151.33,8.2548063]
[1745551466903,26.7,151.41,151.36,8.2548063]
[1745551467505,6.6031,151.4,151.36,8.2548063]
[1745551467698,26.7,151.41,151.36,8.2548063]
[1745551468007,6.6036,151.39,151.36,8.2548063]
[1745551468205,6.6036,151.39,151.35,6.6047]
[1745551471407,6.6036,151.39,151.36,6.6045]
[1745551471807,6.6036,151.39,151.34,8.2548063]
[1745551472008,6.6036,151.39,151.35,6.605]
[1745551473908,6.603,151.4,151.36,6.6045]
[1745551475308,6.603,151.4,151.37,5.27906646]
[1745551475510,6.6033,151.39,151.37,5.27906646]
[1745551476209,6.6033,151.39,151.36,5.27906646]
[1745551478612,6.6033,151.39,151.36,11.88356646]
[1745551478908,6.603,151.4,151.36,11.88356646]
[1745551479113,6.603,151.4,151.37,6.6041]
[1745551479313,6.603,151.4,151.36,5.27906646]
[1745551480008,6.603,151.4,151.36,11.88356646]
[1745551480311,6.6033,151.39,151.36,11.88356646]
[1745551483412,6.603,151.4,151.36,11.88356646]
[1745551483711,26.04,151.44,151.38,5.27906646]
[1745551483905,6.6016,151.43,151.4,5.27906646]
[1745551484413,26.04,151.44,151.4,5.27906646]
[1745551484709,26.04,151.44,151.42,5.27906646]
[1745551484912,26.04,151.46,151.42,5.27906646]
[1745551485313,6.6011,151.44,151.42,5.27906646]
[1745551485716,31.31906646,151.46,151.4,5.27906646]
[1745551485914,6.6018,151.43,151.4,5.27906646]
[1745551488120,6.602,151.42,151.4,5.27906646]
[1745551489721,6.6017,151.43,151.4,5.27906646]
[1745551489920,5.27906646,151.45,151.4,5.27906646]
[1745551490420,6.6018,151.43,151.4,5.27906646]
[1745551491922,6.6021,151.42,151.4,5.27906646]
[1745551493223,5.27906646,151.45,151.4,5.27906646]
[1745551493224,6.6018,151.43,151.4,5.27906646]
[1745551493925,6.6018,151.43,151.4,11.88196646]
[1745551494121,6.6013,151.44,151.4,11.88196646]
[1745551495023,26.04,151.46,151.42,5.27906646]
[1745551495219,26.04,151.49,151.44,5.27906646]
[1745551495428,26.04,151.49,151.46,5.27906646]
[1745551495823,26.04,151.49,151.47,5.27906646]
[1745551496326,32.6392,151.49,151.47,5.27906646]
[1745551498127,6.5994,151.48,151.47,5.27906646]
[1745551498823,6.5994,151.48,151.43,6.6014]
[1745551499126,6.5994,151.48,151.4,1.9351]
[1745551499127,6.5994,151.48,151.45,5.27906646]
[1745551499917,6.5998,151.47,151.45,5.27906646]
[1745551500219,26.04,151.49,151.45,5.27906646]
[1745551500426,6.6001,151.47,151.45,5.27906646]
[1745551500725,5.27906646,151.48,151.42,5.27906646]
[1745551501120,6.601,151.45,151.42,5.27906646]
[1745551501421,5.27906646,151.48,151.42,5.27906646]
[1745551501617,6.6015,151.43,151.42,5.27906646]
[1745551501819,26.04,151.44,151.4,5.27906646]
[1745551503426,31.31906646,151.44,151.4,5.27906646]
[1745551504227,31.31906646,151.44,151.38,5.27906646]
[1745551504429,5.27906646,151.4,151.36,3.952]
[1745551504620,6.6034,151.39,151.36,3.952]
[1745551504828,31.31906646,151.4,151.36,3.952]
[1745551505428,6.6034,151.39,151.36,3.952]
[1745551507934,32.6429,151.4,151.37,5.27906646]
[1745551508132,26.04,151.4,151.37,5.27906646]
[1745551508432,5.27906646,151.42,151.37,5.27906646]
[1745551509232,6.6027,151.41,151.37,5.27906646]
[1745551509627,6.6027,151.41,151.37,11.88306646]
[1745551509829,6.6029,151.4,151.37,5.27906646]
[1745551511633,6.6029,151.4,151.37,11.88316646]
[1745551511932,6.6025,151.41,151.37,11.88316646]
[1745551513034,6.6029,151.4,151.37,5.27906646]
[1745551514536,31.31906646,151.43,151.37,11.88326646]
[1745551514837,31.31906646,151.43,151.37,5.27906646]
[1745551515039,26.04,151.43,151.39,5.27906646]
[1745551515441,5.27906646,151.41,151.37,5.27906646]
[1745551515830,26.04,151.43,151.37,5.27906646]
[1745551516133,31.31906646,151.43,151.37,5.27906646]
[1745551516330,5.27906646,151.41,151.37,5.27906646]
[1745551516637,26.04,151.43,151.37,5.27906646]
[1745551516837,6.6032,151.4,151.37,5.27906646]
[1745551517038,5.27906646,151.41,151.37,5.27906646]
[1745551517538,5.27906646,151.41,151.27,13.2171]
[1745551517539,5.27906646,151.39,151.24,355.0]
[1745551517742,5.27906646,151.37,151.32,5.27906646]
[1745551517937,25.86,151.38,151.32,5.27906646]
[1745551518130,32.464,151.38,151.33,6.6056]
[1745551518335,25.86,151.38,151.34,5.27906646]
[1745551518537,25.86,151.38,151.34,11.88416646]
[1745551520042,32.464,151.38,151.34,11.88416646]
[1745551520340,25.86,151.38,151.34,5.27906646]
[1745551521039,25.86,151.38,151.33,6.6057]
[1745551521239,6.6042,151.37,151.33,6.6057]
[1745551525138,32.4639,151.38,151.34,6.6054]
[1745551525835,6.6043,151.37,151.33,6.6057]
[1745551528147,32.4639,151.38,151.34,6.6054]
[1745551529450,25.86,151.38,151.35,6.6049]
[1745551529649,25.86,151.38,151.34,5.27906646]
[1745551530040,25.86,151.38,151.36,5.27906646]
[1745551530244,31.13906646,151.41,151.36,5.27906646]
[1745551530744,37.74166646,151.41,151.37,6.6039]
[1745551531953,6.6029,151.4,151.36,11.88356646]
[1745551532353,5.27906646,151.39,151.34,5.27906646]